bitfinex/quotes_SOLUSD_20250204
["timestamp","ask_amount","ask_price","bid_price","bid_amount"]
[1738688282165,11.40100717,214.79,214.72,10.0]
[1738688282578,11.40100717,214.79,214.73,0.12549]
[1738688283382,11.40100717,214.79,214.72,10.0]
[1738688284088,11.40100717,214.77,214.72,10.0]
[1738688285587,11.40100717,214.75,214.72,10.0]
[1738688285892,11.40100717,214.73,214.72,10.0]
[1738688286303,13.02430717,214.73,214.72,10.0]
[1738688286687,17.68130717,214.73,214.72,10.0]
[1738688288112,16.05800717,214.73,214.72,10.0]
[1738688288807,4.657,214.73,214.72,10.0]
[1738688288994,16.05800717,214.73,214.72,10.0]
[1738688289374,16.05800717,214.73,214.72,10.03]
[1738688290183,4.657,214.73,214.72,10.03]
[1738688294218,16.05800717,214.73,214.72,10.03]
[1738688295801,4.657,214.73,214.72,10.03]
[1738688297219,11.40100717,214.75,214.72,10.03]
[1738688297526,11.6398,214.78,214.73,0.12549]
[1738688298990,11.40100717,214.77,214.72,10.03]
[1738688299188,11.40100717,214.74,214.72,10.03]
[1738688300216,11.40100717,214.76,214.72,10.03]
[1738688302727,27.69670717,214.78,214.73,0.12549]
[1738688303118,11.40100717,214.76,214.72,10.03]
[1738688303293,11.40100717,214.74,214.72,10.03]
[1738688307713,11.40100717,214.76,214.72,10.03]
[1738688307911,4.6563,214.77,214.72,10.03]
[1738688308618,11.40100717,214.76,214.72,10.03]
[1738688310630,16.05750717,214.76,214.72,10.03]
[1738688311123,11.40100717,214.74,214.72,10.03]
[1738688311621,16.05790717,214.74,214.72,10.03]
[1738688312199,19.00710717,214.73,214.72,10.03]
[1738688312523,21.00710717,214.73,214.68,5.0]
[1738688312730,11.40100717,214.69,214.68,5.0]
[1738688313922,16.05880717,214.69,214.68,5.03]
[1738688314696,16.05880717,214.69,214.68,5.0]
[1738688315127,4.6578,214.69,214.68,5.0]
[1738688315497,16.05880717,214.69,214.68,5.0]
[1738688316141,4.6578,214.69,214.68,5.0]
[1738688316635,11.40100717,214.71,214.68,5.0]
[1738688316815,11.40100717,214.73,214.68,5.0]
[1738688321914,11.40100717,214.71,214.68,5.0]
[1738688324144,4.657,214.73,214.68,5.0]
[1738688324618,16.05800717,214.73,214.68,5.0]
[1738688325651,16.05800717,214.73,214.68,9.658]
[1738688325815,16.05800717,214.73,214.68,9.688]
[1738688326015,4.657,214.73,214.68,9.688]
[1738688326253,4.72,214.73,214.68,9.688]
[1738688326439,0.063,214.73,214.71,0.25098]
[1738688326821,0.063,214.73,214.72,11.65198717]
[1738688327020,0.063,214.73,214.72,25.1893257]
[1738688327850,0.063,214.73,214.72,29.8465257]
[1738688331545,0.063,214.73,214.72,4.6572]
[1738688332051,0.063,214.73,214.72,4.1572]
[1738688333934,0.063,214.73,214.72,4.40818]
[1738688334146,0.063,214.73,214.72,11.77747717]
[1738688334656,0.063,214.73,214.72,11.90296717]
[1738688336260,0.063,214.73,214.72,17.09193361]
[1738688336427,0.063,214.73,214.72,16.56016717]
[1738688336829,0.063,214.73,214.72,29.9720157]
[1738688338455,0.063,214.73,214.72,50.60522287]
[1738688339760,0.063,214.73,214.72,50.63522287]
[1738688340256,0.063,214.73,214.72,38.73586038]
[1738688340469,0.063,214.73,214.72,38.2042157]
[1738688341259,0.063,214.73,214.72,31.6376157]
[1738688341443,23.2813,214.77,214.76,0.25098]
[1738688341643,23.2813,214.77,214.76,20.25098]
[1738688341942,23.2813,214.77,214.76,45.3148157]
[1738688342933,23.2813,214.77,214.76,49.9711157]
[1738688343441,0.063,214.78,214.77,13.66282853]
[1738688343641,0.063,214.78,214.77,14.44500717]
[1738688343962,0.063,214.78,214.77,20.83970717]
[1738688344436,0.063,214.78,214.77,13.91380853]
[1738688344762,0.063,214.78,214.77,11.77747717]
[1738688344932,0.063,214.78,214.77,16.55906717]
[1738688345133,0.063,214.78,214.77,16.43357717]
[1738688345450,0.063,214.78,214.74,4.6566]
[1738688345655,11.46400717,214.78,214.71,4.6572]
[1738688345867,11.46400717,214.78,214.72,0.25098]
[1738688346163,11.40100717,214.76,214.71,4.6572]
[1738688347469,0.063,214.78,214.68,5.0]
[1738688347676,11.40100717,214.71,214.68,9.6579]
[1738688347850,11.40100717,214.71,214.68,5.0]
[1738688352079,11.40100717,214.73,214.68,9.658]
[1738688352248,6.3187,214.74,214.68,9.688]
[1738688352449,0.063,214.77,214.7,11.40100717]
[1738688352655,0.063,214.77,214.72,11.40100717]
[1738688352874,16.12020717,214.77,214.68,21.33998717]
[1738688353071,11.40100717,214.75,214.68,9.658]
[1738688353378,11.40100717,214.73,214.68,5.0]
[1738688354192,11.40100717,214.71,214.68,5.0]
[1738688357996,4.6572,214.72,214.68,5.0]
[1738688358300,11.40100717,214.73,214.68,9.658]
[1738688358473,11.40100717,214.75,214.68,9.658]
[1738688360602,11.40100717,214.75,214.68,21.05900717]
[1738688361990,4.7191,214.77,214.7,16.05860717]
[1738688362492,0.063,214.77,214.72,11.40100717]
[1738688363101,0.063,214.77,214.74,11.40100717]
[1738688363602,0.063,214.77,214.76,11.65198717]
[1738688364606,11.46400717,214.77,214.71,4.6572]
[1738688364820,11.40100717,214.76,214.71,4.6572]
[1738688364995,0.063,214.77,214.72,0.25098]
[1738688365390,0.063,214.77,214.72,11.65198717]
[1738688365590,0.063,214.77,214.73,4.657]
[1738688366306,0.063,214.75,214.74,0.50196]
[1738688366515,0.063,214.75,214.74,25.3148157]
[1738688366900,0.063,214.75,214.74,0.25098]
[1738688367716,0.063,214.75,214.74,4.90768]
[1738688368416,0.063,214.75,214.72,4.657]
[1738688369709,0.063,214.75,214.74,4.6567]
[1738688370010,0.063,214.75,214.74,16.43417717]
[1738688370317,0.063,214.75,214.74,29.9715157]
[1738688373115,0.063,214.75,214.74,16.43417717]
[1738688376013,0.063,214.75,214.74,29.9715157]
[1738688379224,0.063,214.75,214.74,5.03317]
[1738688380021,0.063,214.75,214.74,4.90768]
[1738688380222,11.46400717,214.75,214.73,0.03]
[1738688382197,16.12060717,214.75,214.73,0.03]
[1738688384228,4.7196,214.75,214.73,0.03]
[1738688385426,11.40100717,214.74,214.73,0.03]
[1738688387230,16.05770717,214.74,214.73,0.03]
[1738688387405,1.0,214.73,214.68,5.0]
[1738688387607,11.40100717,214.69,214.68,5.0]
[1738688387920,19.42860717,214.69,214.68,5.0]
[1738688388120,20.42860717,214.69,214.68,5.0]
[1738688389003,25.08640717,214.69,214.68,5.0]
[1738688390816,38.6237457,214.69,214.68,5.0]
[1738688391935,38.6237457,214.69,214.68,3.3334]
[1738688392437,1.0,214.65,214.63,15.0]
[1738688392611,12.27489455,214.64,214.63,15.0]
[1738688393234,1.25098,214.63,214.62,15.0]
[1738688393409,14.66282853,214.63,214.62,11.85109324]
[1738688393608,1.0,214.63,214.62,11.85109324]
[1738688393822,22.0,214.61,214.6,5.0]
[1738688394131,4.6602,214.58,214.5,5.0]
[1738688394335,11.40100717,214.53,214.5,5.0]
[1738688395706,11.40100717,214.55,214.5,5.0]
[1738688395906,11.40100717,214.57,214.5,5.0]
[1738688396126,11.40100717,214.57,214.5,21.06290717]
[1738688396317,16.06150717,214.57,214.5,16.40100717]
[1738688396518,4.6605,214.57,214.5,21.06290717]
[1738688397547,4.6605,214.57,214.52,16.06250717]
[1738688399623,4.6605,214.57,214.5,16.40100717]
[1738688399826,16.06150717,214.57,214.5,16.40100717]
[1738688400027,16.06150717,214.57,214.5,21.06300717]
[1738688400739,4.6593,214.63,214.56,11.40100717]
[1738688401213,16.06030717,214.63,214.56,11.40100717]
[1738688401731,23.2958,214.64,214.62,11.40100717]
[1738688402934,23.2958,214.64,214.63,11.90296717]
[1738688403140,23.2958,214.64,214.63,25.3148157]
[1738688403539,23.2958,214.64,214.63,29.9739157]
[1738688403840,23.2958,214.64,214.63,36.56206717]
[1738688404053,23.2893,214.69,214.68,11.40100717]
[1738688404622,23.2893,214.69,214.64,11.40100717]
[1738688404842,23.2893,214.69,214.66,11.40100717]
[1738688405042,23.2893,214.69,214.68,11.65198717]
[1738688405629,23.2893,214.69,214.68,16.56096717]
[1738688405822,23.2893,214.69,214.68,29.9728157]
[1738688407839,23.2893,214.69,214.68,16.56096717]
[1738688408430,23.2893,214.69,214.68,29.9728157]
[1738688409250,23.2893,214.69,214.68,30.50484712]
[1738688409550,23.2893,214.69,214.68,29.9728157]
[1738688411759,23.2893,214.69,214.68,16.56096717]
[1738688412259,23.2893,214.69,214.68,29.9728157]
[1738688412477,23.2893,214.69,214.68,31.50482028]
[1738688412656,23.2893,214.69,214.68,29.9728157]
[1738688412970,23.2893,214.69,214.68,16.56096717]
[1738688414154,23.2893,214.69,214.68,29.9728157]
[1738688414662,23.2893,214.69,214.66,4.6583]
[1738688415860,23.2893,214.69,214.66,36.05930717]
[1738688416639,23.2893,214.69,214.66,16.05930717]
[1738688417060,23.2893,214.69,214.62,1.83218]
[1738688417061,23.2893,214.69,214.62,11.40100717]
[1738688417759,23.2893,214.69,214.65,0.25098]
[1738688417951,23.2893,214.69,214.68,11.65198717]
[1738688418347,23.2893,214.69,214.66,11.40100717]
[1738688418856,23.2893,214.69,214.68,11.65198717]
[1738688419241,23.3523,214.69,214.68,11.65198717]
[1738688420863,23.3523,214.69,214.68,16.30998717]
[1738688421251,23.3523,214.69,214.68,29.9728157]
[1738688422074,21.22429078,214.69,214.68,29.9728157]
[1738688422271,21.22429078,214.69,214.68,30.9728157]
[1738688422772,21.22429078,214.69,214.68,31.9728157]
[1738688422951,0.063,214.73,214.72,33.66282853]
[1738688423146,0.063,214.73,214.72,56.46484287]
[1738688423576,23.3438,214.77,214.72,56.46484287]
[1738688423577,23.3438,214.77,214.76,20.25098]
[1738688423868,23.3438,214.77,214.76,45.3148157]
[1738688424080,0.063,214.78,214.77,13.91380853]
[1738688424262,0.063,214.83,214.82,13.91380853]
[1738688424569,0.063,214.83,214.82,25.3148157]
[1738688425272,0.063,214.83,214.82,29.9698157]
[1738688425476,4.7161,214.92,214.88,0.50196]
[1738688425477,0.063,214.92,214.88,0.50196]
[1738688425642,0.063,214.92,214.87,1.0]
[1738688425643,0.063,214.92,214.91,11.52649717]
[1738688425844,0.063,214.92,214.89,11.40100717]
[1738688426148,11.40100717,214.9,214.8,11.40100717]
[1738688426342,0.063,214.92,214.83,11.40100717]
[1738688426545,11.40100717,214.89,214.81,11.40100717]
[1738688426762,11.40100717,214.87,214.79,11.40100717]
[1738688427170,16.05500717,214.87,214.79,11.40100717]
[1738688428154,16.05500717,214.87,214.79,16.05660717]
[1738688428856,4.654,214.87,214.79,16.05660717]
[1738688429253,16.05500717,214.87,214.79,11.40100717]
[1738688429472,16.05500717,214.87,214.79,16.05660717]
[1738688429881,4.654,214.87,214.79,11.40100717]
[1738688430084,16.05500717,214.87,214.79,11.40100717]
[1738688430263,16.05500717,214.87,214.77,11.40100717]
[1738688432509,11.40100717,214.81,214.71,11.40100717]
[1738688432983,11.40100717,214.81,214.72,11.401007]
[1738688433387,4.6554,214.8,214.72,0.12549]
[1738688433778,11.40100717,214.79,214.71,22.80201517]
[1738688434090,11.40100717,214.75,214.67,16.05920717]
[1738688434284,11.40100717,214.75,214.67,27.46021417]
[1738688434488,11.40100717,214.75,214.68,0.25098]
[1738688434675,11.40100717,214.77,214.69,11.40100717]
[1738688435089,11.40100717,214.77,214.7,0.12549]
[1738688435273,16.05720717,214.77,214.7,0.12549]
[1738688436483,16.05720717,214.77,214.69,11.40100717]
[1738688436905,16.05720717,214.77,214.7,0.12549]
[1738688437500,4.6562,214.77,214.72,0.12549]
[1738688437807,4.6562,214.77,214.73,11.40100717]
[1738688438492,11.6387,214.8,214.76,0.25098]
[1738688438700,11.6387,214.8,214.79,11.65198717]
[1738688439003,23.2713,214.86,214.82,0.25098]
[1738688439293,23.2713,214.86,214.83,11.40100717]
[1738688439991,23.2713,214.86,214.81,11.40100717]
[1738688440403,11.40100717,214.85,214.77,11.40100717]
[1738688440572,11.40100717,214.83,214.75,11.40100717]
[1738688440772,18.30760898,214.81,214.73,18.30760898]
[1738688441367,18.30760898,214.79,214.71,18.30760898]
[1738688441568,18.30760898,214.77,214.69,18.30760898]
[1738688441874,18.30760898,214.77,214.7,0.12549]
[1738688442284,18.30760898,214.77,214.69,18.30760898]
[1738688442604,18.30760898,214.75,214.67,29.70861598]
[1738688442803,18.30760898,214.75,214.67,11.401007]
[1738688443008,18.30760898,214.73,214.65,18.30760898]
[1738688443215,18.30760898,214.71,214.63,29.70861598]
[1738688443395,4.658,214.68,214.61,18.30760898]
[1738688443582,4.658,214.68,214.6,0.03]
[1738688444112,4.658,214.68,214.61,18.30760898]
[1738688444521,4.658,214.68,214.62,0.12549]
[1738688444683,4.658,214.68,214.63,18.30760898]
[1738688446206,4.658,214.68,214.65,18.30760898]
[1738688446506,4.658,214.68,214.67,18.30760898]
[1738688446882,16.2988,214.74,214.67,18.30760898]
[1738688447082,18.30760898,214.73,214.65,18.30760898]
[1738688448023,4.6572,214.72,214.65,18.30760898]
[1738688448194,18.30760898,214.71,214.63,18.30760898]
[1738688449920,4.6576,214.7,214.63,18.30760898]
[1738688450092,4.6576,214.7,214.65,18.30760898]
[1738688451012,4.6576,214.7,214.62,4.6593]
[1738688451180,4.6576,214.7,214.63,18.30760898]
[1738688451381,4.6576,214.7,214.61,18.30760898]
[1738688451695,18.30760898,214.69,214.61,18.30760898]
[1738688453009,4.658,214.68,214.61,18.30760898]
[1738688453219,4.658,214.68,214.63,18.30760898]
[1738688454322,4.658,214.68,214.65,18.30760898]
[1738688454513,4.658,214.68,214.67,18.30760898]
[1738688454819,11.643,214.72,214.67,18.43309898]
[1738688455031,11.643,214.72,214.7,18.30760898]
[1738688455386,11.643,214.72,214.71,0.12549]
[1738688456693,11.643,214.72,214.71,4.90838]
[1738688457431,23.2803,214.78,214.71,5.15936]
[1738688457591,23.2803,214.78,214.75,18.30760898]
[1738688457920,23.2803,214.78,214.76,0.12549]
[1738688458106,23.2803,214.78,214.77,18.30760898]
[1738688459027,23.2803,214.78,214.73,18.30760898]
[1738688460806,18.30760898,214.77,214.69,18.30760898]
[1738688461918,18.30760898,214.75,214.67,18.30760898]
[1738688462322,18.30760898,214.77,214.67,18.30760898]
[1738688462949,18.30760898,214.75,214.67,18.30760898]
[1738688463109,18.30760898,214.73,214.65,18.33760898]
[1738688463530,6.1248,214.72,214.65,0.03]
[1738688463732,18.30760898,214.67,214.65,0.03]
[1738688464644,18.30760898,214.71,214.65,0.03]
[1738688465013,18.30760898,214.67,214.65,0.03]
[1738688466323,18.30760898,214.69,214.65,0.03]
[1738688467138,4.658,214.68,214.65,0.03]
[1738688467822,18.30760898,214.67,214.65,0.03]
[1738688469210,4.6585,214.66,214.65,0.03]
[1738688469420,5.6585,214.66,214.65,0.03]
[1738688471139,7.2627,214.66,214.65,0.03]
[1738688471840,1.0,214.61,214.6,0.03]
[1738688472021,38.48923449,214.61,214.6,0.03]
[1738688472813,20.18162551,214.61,214.6,0.03]
[1738688473029,24.84122551,214.61,214.6,0.03]
[1738688473721,43.14883449,214.61,214.6,0.03]
[1738688475225,56.81166302,214.61,214.6,0.03]
[1738688475428,1.0,214.55,214.5,5.0]
[1738688475633,18.30760898,214.51,214.5,5.0]
[1738688477653,22.96930898,214.51,214.5,5.0]
[1738688478147,23.84380951,214.51,214.5,5.0]
[1738688478354,19.30760898,214.47,214.46,0.03]
[1738688478522,1.0,214.45,214.44,4.53]
[1738688478847,20.18231528,214.45,214.44,4.53]
[1738688479059,18.30760898,214.45,214.44,4.53]
[1738688479263,18.30760898,214.49,214.44,4.53]
[1738688479747,22.6933,214.51,214.44,4.53]
[1738688479748,4.6624,214.48,214.44,4.53]
[1738688481117,18.30760898,214.45,214.44,4.53]
[1738688481934,22.97060898,214.45,214.44,4.53]
[1738688483058,4.663,214.45,214.44,4.53]
[1738688483847,22.97060898,214.45,214.44,4.53]
[1738688485751,23.84520228,214.45,214.44,4.53]
[1738688487334,39.86175081,214.45,214.44,4.53]
[1738688487763,39.98724081,214.45,214.44,4.53]
[1738688487964,41.17443551,214.45,214.44,4.53]
[1738688488960,14.41184853,214.44,214.43,0.03]
[1738688489546,19.07514853,214.44,214.43,0.03]
[1738688489929,35.41184853,214.41,214.4,0.03]
[1738688490142,21.0,214.39,214.38,0.03]
[1738688490367,1.0,214.37,214.28,0.03]
[1738688490656,72.02757906,214.39,214.28,0.03]
[1738688490657,18.30760898,214.29,214.28,0.03]
[1738688491161,18.30760898,214.36,214.28,0.28098]
[1738688491468,22.97270898,214.36,214.29,18.30760898]
[1738688491669,4.6651,214.36,214.31,18.30760898]
[1738688492029,4.6651,214.36,214.3,0.25098]
[1738688492233,4.6651,214.36,214.31,18.30760898]
[1738688494049,4.6651,214.36,214.3,0.12549]
[1738688494461,4.6651,214.36,214.29,18.30760898]
[1738688494771,22.97270898,214.36,214.28,0.03]
[1738688494943,22.97270898,214.36,214.28,0.15549]
[1738688495264,18.30760898,214.34,214.28,0.03]
[1738688495636,18.30760898,214.32,214.28,0.03]
[1738688495938,18.30760898,214.3,214.28,0.03]
[1738688496459,18.30760898,214.32,214.28,0.03]
[1738688496657,4.6661,214.31,214.28,0.03]
[1738688497359,18.30760898,214.3,214.28,0.03]
[1738688497679,4.6661,214.31,214.28,0.03]
[1738688499860,18.30760898,214.3,214.28,0.03]
[1738688501855,22.97400898,214.3,214.28,0.03]
[1738688504666,4.6664,214.3,214.28,0.03]
[1738688506373,22.97400898,214.3,214.28,0.03]
[1738688507494,4.6664,214.3,214.28,0.03]
[1738688507985,22.97400898,214.3,214.28,0.03]
[1738688509385,37.4903824,214.29,214.28,0.03]
[1738688509564,1.0,214.24,214.1,18.30760898]
[1738688509764,18.30760898,214.21,214.12,18.30760898]
[1738688509960,18.30760898,214.25,214.18,18.30760898]
[1738688510160,18.30760898,214.27,214.18,18.30760898]
[1738688510361,18.30760898,214.25,214.18,18.30760898]
[1738688511087,4.6676,214.24,214.18,18.30760898]
[1738688511283,18.30760898,214.23,214.18,0.12549]
[1738688511484,18.30760898,214.21,214.15,0.25098]
[1738688511782,18.30760898,214.16,214.09,0.03]
[1738688511996,18.30760898,214.2,214.13,18.30760898]
[1738688512880,57.98260898,214.24,214.18,0.12549]
[1738688513057,39.675,214.24,214.2,0.12549]
[1738688513495,39.675,214.24,214.19,18.30760898]
[1738688515785,39.675,214.24,214.18,0.40647]
[1738688516082,39.675,214.24,214.2,0.12549]
[1738688517466,39.675,214.24,214.22,0.12549]
[1738688517663,35.0074,214.24,214.23,18.68407898]
[1738688518999,36.0074,214.24,214.22,18.30760898]
[1738688519802,36.0074,214.24,214.2,18.30760898]
[1738688520099,1.0,214.21,214.18,18.30760898]
[1738688521386,1.0,214.21,214.19,0.37647]
[1738688521695,2.0,214.21,214.16,22.97690898]
[1738688522010,1.0,214.19,214.17,0.37647]
[1738688522791,35.0074,214.24,214.18,18.43309898]
[1738688522974,35.0074,214.24,214.21,0.37647]
[1738688523174,35.0074,214.24,214.22,18.30760898]
[1738688523489,35.0074,214.24,214.22,0.12549]
[1738688523880,35.0074,214.24,214.23,0.25098]
[1738688524589,23.3383,214.24,214.23,5.16976]
[1738688525088,23.3383,214.24,214.23,16.66116438]
[1738688527714,23.3383,214.24,214.23,18.17396438]
[1738688528303,23.3383,214.24,214.23,17.67200438]
[1738688528483,23.3383,214.24,214.23,13.00420438]
[1738688529788,23.3383,214.24,214.23,1.5128]
[1738688530413,23.3383,214.24,214.22,4.668]
[1738688530722,1.0,214.23,214.19,11.49140438]
[1738688530897,1.0,214.23,214.19,16.16000438]
[1738688531082,1.0,214.21,214.19,16.16000438]
[1738688531816,23.3383,214.24,214.2,5.04497]
[1738688531986,23.3383,214.24,214.23,11.49140438]
[1738688531987,24.3383,214.24,214.23,11.49140438]
[1738688532308,24.3383,214.24,214.21,11.49140438]
[1738688532644,23.3383,214.24,214.21,11.49140438]
[1738688532784,24.3383,214.24,214.21,11.49140438]
[1738688532989,1.0,214.23,214.21,11.49140438]
[1738688533599,1.0,214.22,214.19,11.49140438]
[1738688534605,23.3383,214.24,214.21,11.49140438]
[1738688535007,2.0,214.23,214.21,11.49140438]
[1738688535303,23.3383,214.24,214.21,11.49140438]
[1738688535829,24.3383,214.24,214.21,11.49140438]
[1738688536033,1.0,214.18,214.17,0.03]
[1738688536241,2.0,214.18,214.17,0.03]
[1738688536939,1.0,214.22,214.17,0.15549]
[1738688537140,23.3383,214.24,214.21,11.49140438]
[1738688537432,23.3383,214.24,214.23,11.49140438]
[1738688537667,23.3383,214.24,214.21,11.49140438]
[1738688538141,1.0,214.22,214.21,11.49140438]
[1738688538319,1.063,214.22,214.21,11.49140438]
[1738688538515,1.063,214.22,214.18,4.6688]
[1738688538516,2.063,214.22,214.19,11.49140438]
[1738688538713,1.0,214.2,214.19,11.49140438]
[1738688539029,1.0,214.18,214.17,0.03]
[1738688540012,2.0,214.21,214.17,0.03]
[1738688540217,0.063,214.22,214.17,0.03]
[1738688540218,2.0,214.19,214.17,0.03]
[1738688541844,19.70340438,214.19,214.17,0.03]
[1738688542054,4.6689,214.18,214.17,0.03]
[1738688543828,5.54453281,214.18,214.17,0.03]
[1738688544152,4.6689,214.18,214.17,0.03]
[1738688545548,16.16030438,214.18,214.17,0.03]
[1738688547548,17.03596555,214.18,214.17,0.03]
[1738688549531,16.16030438,214.18,214.17,0.03]
[1738688549730,4.6689,214.18,214.17,0.03]
[1738688550421,1.0,214.21,214.17,11.52140438]
[1738688550727,1.0,214.19,214.17,11.52140438]
[1738688550926,1.0,214.21,214.17,11.52140438]
[1738688551149,2.0,214.21,214.17,11.52140438]
[1738688551329,1.0,214.2,214.17,11.52140438]
[1738688551526,1.0,214.18,214.17,11.52140438]
[1738688551825,2.0,214.2,214.17,11.52140438]
[1738688552152,1.0,214.2,214.17,11.52140438]
[1738688552334,4.6683,214.21,214.17,16.19050438]
[1738688553161,1.0,214.18,214.17,11.52140438]
[1738688553623,1.0,214.18,214.17,0.03]
[1738688554327,2.0,214.18,214.17,0.03]
[1738688554956,1.0,214.18,214.17,0.03]
[1738688555122,2.0,214.18,214.17,0.03]
[1738688555326,22.0,214.18,214.17,0.03]
[1738688555853,2.0,214.18,214.17,0.03]
[1738688556056,22.0,214.18,214.17,0.03]
[1738688556245,24.76700438,214.18,214.17,0.03]
[1738688556758,44.76700438,214.18,214.17,0.03]
[1738688557564,24.76700438,214.18,214.17,0.03]
[1738688557855,2.0,214.09,214.08,0.03]
[1738688558224,5.6702,214.13,214.08,11.52140438]
[1738688558571,1.0,214.15,214.11,11.49140438]
[1738688558756,1.0,214.15,214.08,0.03]
[1738688558757,1.0,214.15,214.13,11.49140438]
[1738688559061,1.0,214.17,214.13,11.49140438]
[1738688559223,1.0,214.17,214.15,11.49140438]
[1738688559422,1.0,214.16,214.15,11.49140438]
[1738688560034,1.0,214.17,214.15,11.49140438]
[1738688560235,2.0,214.17,214.15,11.49140438]
[1738688560457,1.0,214.15,214.13,11.49140438]
[1738688561259,2.0,214.17,214.13,11.49140438]
[1738688562256,20.0,214.15,214.14,4.6698]
[1738688562732,20.0,214.15,214.13,11.49140438]
[1738688562733,2.0,214.17,214.13,11.49140438]
[1738688563456,20.0,214.16,214.15,11.49140438]
[1738688563754,20.0,214.16,214.15,11.52140438]
[1738688563954,11.6724,214.18,214.15,11.52140438]
[1738688564163,11.6724,214.18,214.17,11.49140438]
[1738688564329,0.063,214.21,214.17,11.74238438]
[1738688564529,1.063,214.21,214.2,11.49140438]
[1738688565167,0.063,214.21,214.2,11.49140438]
[1738688565728,0.063,214.21,214.2,11.74238438]
[1738688565932,0.063,214.21,214.2,18.07097438]
[1738688566145,23.4013,214.24,214.21,0.50196]
[1738688566351,23.4013,214.24,214.23,11.99336438]
[1738688567270,23.4013,214.24,214.23,11.74238438]
[1738688567838,23.4013,214.24,214.23,16.15920438]
[1738688568571,23.4013,214.24,214.23,16.41018438]
[1738688569234,23.4013,214.24,214.23,16.15920438]
[1738688569434,23.4013,214.24,214.23,11.49140438]
[1738688569652,25.4013,214.24,214.19,11.49140438]
[1738688569843,25.4013,214.24,214.19,16.16010438]
[1738688570268,1.0,214.21,214.17,11.49140438]
[1738688572379,1.0,214.18,214.15,11.52140438]
[1738688572683,1.0,214.19,214.15,11.52140438]
[1738688572860,1.0,214.19,214.17,11.49140438]
[1738688573060,5.6683,214.21,214.17,11.49140438]
[1738688573265,1.0,214.23,214.19,11.49140438]
[1738688573648,24.4013,214.24,214.21,11.49140438]
[1738688573855,23.4013,214.24,214.21,11.49140438]
[1738688574467,24.4013,214.24,214.21,11.49140438]
[1738688574775,23.4013,214.24,214.23,11.49140438]
[1738688574976,23.4013,214.24,214.23,11.74238438]
[1738688576358,23.4013,214.24,214.23,11.99336438]
[1738688576561,23.4013,214.24,214.23,16.66116438]
[1738688578678,23.4013,214.24,214.23,39.96779967]
[1738688578860,23.4013,214.24,214.23,18.38785567]
[1738688579269,23.4013,214.24,214.23,18.63883567]
[1738688579475,23.4013,214.24,214.23,23.30663567]
[1738688580288,23.4013,214.24,214.23,23.55761567]
[1738688581189,23.4013,214.24,214.23,23.30663567]
[1738688582192,23.4013,214.24,214.23,23.55761567]
[1738688582393,23.3317,214.3,214.27,0.50196]
[1738688582742,23.386,214.38,214.33,0.12549]
[1738688582869,23.386,214.38,214.37,18.63883567]
[1738688583392,24.386,214.38,214.35,18.38785567]
[1738688583588,23.386,214.38,214.35,18.38785567]
[1738688583771,23.386,214.38,214.37,18.63883567]
[1738688584175,23.386,214.38,214.37,18.38785567]
[1738688584803,23.386,214.38,214.37,23.05265567]
[1738688584982,23.386,214.38,214.37,18.38785567]
[1738688585182,23.386,214.38,214.37,18.51334567]
[1738688585376,23.386,214.38,214.37,18.63883567]
[1738688585579,23.386,214.38,214.37,18.76432567]
[1738688586104,23.386,214.38,214.37,18.88981567]
[1738688587416,11.78583066,214.38,214.37,18.88981567]
[1738688587624,0.063,214.43,214.41,0.50196]
[1738688587822,0.063,214.43,214.42,18.88981567]
[1738688588916,0.063,214.43,214.42,23.55351567]